{"text_format":"3","workbook":"xlsx","n_sheets":6,"sheets":["판매 방문 로그","고객 연락처 정보","방문 전 작업","첫 방문","영업 정보","추가 작업"],"not_rendered":{"defined_names":14},"read":"whole","date_system":"1900"}

{"sheet":"판매 방문 로그","index":0,"n_rows":13,"n_cols":7,"rows_kept":13}
[null," 회사 이름"]
[null,"판매 방문 로그"]
[null,"방문 #","고객","회사","날짜","시간","메모"]
[null,1,"강진영",{"$f":"IF('판매 방문 로그'!$C4=\"\",\"\",IFERROR(VLOOKUP('판매 방문 로그'!$C4,고객연락처정보[],2,0),\"Not Found\"))","v":"Proseware, Inc."},{"$f":"TODAY()-5","v":"2017-10-07"},"08:30:00"]
[null,2,"이봉진",{"$f":"IF('판매 방문 로그'!$C5=\"\",\"\",IFERROR(VLOOKUP('판매 방문 로그'!$C5,고객연락처정보[],2,0),\"Not Found\"))","v":"Litware, Inc."},{"$f":"TODAY()-5","v":"2017-10-07"},"09:00:00"]
[null,3,"진현준",{"$f":"IF('판매 방문 로그'!$C6=\"\",\"\",IFERROR(VLOOKUP('판매 방문 로그'!$C6,고객연락처정보[],2,0),\"Not Found\"))","v":"Northwind Traders"},"2017-10-07","09:30:00"]
[null,4,"김배식",{"$f":"IF('판매 방문 로그'!$C7=\"\",\"\",IFERROR(VLOOKUP('판매 방문 로그'!$C7,고객연락처정보[],2,0),\"Not Found\"))","v":"Lucerne Publishing"},"2017-10-07","10:00:00"]
[null,5,"장진해",{"$f":"IF('판매 방문 로그'!$C8=\"\",\"\",IFERROR(VLOOKUP('판매 방문 로그'!$C8,고객연락처정보[],2,0),\"Not Found\"))","v":"Margie's Travel"},"2017-10-07","10:30:00"]
[null,6,"강진영",{"$f":"IF('판매 방문 로그'!$C9=\"\",\"\",IFERROR(VLOOKUP('판매 방문 로그'!$C9,고객연락처정보[],2,0),\"Not Found\"))","v":"Proseware, Inc."},{"$f":"TODAY()-3","v":"2017-10-09"},"11:00:00"]
[null,7,"이봉진",{"$f":"IF('판매 방문 로그'!$C10=\"\",\"\",IFERROR(VLOOKUP('판매 방문 로그'!$C10,고객연락처정보[],2,0),\"Not Found\"))","v":"Litware, Inc."},{"$f":"TODAY()-3","v":"2017-10-09"},"11:30:00"]
[null,8,"강진영",{"$f":"IF('판매 방문 로그'!$C11=\"\",\"\",IFERROR(VLOOKUP('판매 방문 로그'!$C11,고객연락처정보[],2,0),\"Not Found\"))","v":"Proseware, Inc."},{"$f":"TODAY()-1","v":"2017-10-11"},"12:00:00"]
[null,9,"장진해",{"$f":"IF('판매 방문 로그'!$C12=\"\",\"\",IFERROR(VLOOKUP('판매 방문 로그'!$C12,고객연락처정보[],2,0),\"Not Found\"))","v":"Margie's Travel"},{"$f":"TODAY()-1","v":"2017-10-11"},"12:30:00"]
[null,10,"장진해",{"$f":"IF('판매 방문 로그'!$C13=\"\",\"\",IFERROR(VLOOKUP('판매 방문 로그'!$C13,고객연락처정보[],2,0),\"Not Found\"))","v":"Margie's Travel"},{"$f":"TODAY()","v":"2017-10-12"},"13:00:00"]

{"sheet":"고객 연락처 정보","index":1,"n_rows":8,"n_cols":8,"rows_kept":8}
[null,{"$f":"회사이름","v":" 회사 이름"}]
[null,"고객 연락처 정보"]
[null,"고객 이름","회사 이름","주소","구/군/시, 시/도 우편 번호","기본 전화","보조 전화","전자 메일"]
[null,"이봉진","Litware, Inc.","100 Main St","Cherrytown, NH 123456","(541) 555-0135","(541) 555-0136","radim@litwareinc.com"]
[null,"김배식","Lucerne Publishing","567 Second Ave","Spaulding, NY 23456","(425) 555-0198","(425) 555-0199","aaron@lucernepublishing.com"]
[null,"장진해","Margie's Travel","987 Orange St","Mountain View, IL 34567","(888) 555-0125","(888) 555-0126","brian@margiestravel.com"]
[null,"진현준","Northwind Traders","890 N 3rd Ave","Chatham, CA 45678","(541) 555-0175","(541) 555-0176","phyllis@northwindtraders.com"]
[null,"강진영","Proseware, Inc.","123 Major Dr","Shelbyville, MA 56789","(509) 555-0150","(509) 555-0151","jeff@proseware.com"]

{"sheet":"방문 전 작업","index":2,"n_rows":13,"n_cols":3,"rows_kept":13}
[null,{"$f":"회사이름","v":" 회사 이름"}]
[null,"판매 방문 검사 목록"]
[null,"확인란","방문 전 작업"]
[null,null,"고객 기록 검토"]
[null,null,"고객 고용주 기록 검토"]
[null,null,"우선 순위 및 영업 전략 검토"]
[null,null,"항목 추가"]
[null,null,"항목 추가"]
[null,null,"항목 추가"]
[null,null,"항목 추가"]
[null,null,"항목 추가"]
[null,null,"항목 추가"]
[null,null,"항목 추가"]

{"sheet":"첫 방문","index":3,"n_rows":13,"n_cols":3,"rows_kept":13}
[null,{"$f":"회사이름","v":" 회사 이름"}]
[null,"판매 방문 검사 목록"]
[null,"확인란","첫 방문"]
[null,null,"적절한 사람에게 직접 방문"]
[null,null,"명확한 소개"]
[null,null,"항목 추가"]
[null,null,"항목 추가"]
[null,null,"항목 추가"]
[null,null,"항목 추가"]
[null,null,"항목 추가"]
[null,null,"항목 추가"]
[null,null,"항목 추가"]
[null,null,"항목 추가"]

{"sheet":"영업 정보","index":4,"n_rows":13,"n_cols":3,"rows_kept":13}
[null,{"$f":"회사이름","v":" 회사 이름"}]
[null,"판매 방문 검사 목록"]
[null,"확인란","영업 정보"]
[null,null,"제품/서비스에 대한 명확하고 설득력 있는 소개"]
[null,null,"모든 기본 사항 설명"]
[null,null,"웹 서비스(예: 웹 사이트, 소셜 네트워크) 언급"]
[null,null,"항목 추가"]
[null,null,"항목 추가"]
[null,null,"항목 추가"]
[null,null,"항목 추가"]
[null,null,"항목 추가"]
[null,null,"항목 추가"]
[null,null,"항목 추가"]

{"sheet":"추가 작업","index":5,"n_rows":13,"n_cols":3,"rows_kept":13}
[null,{"$f":"회사이름","v":" 회사 이름"}]
[null,"판매 방문 검사 목록"]
[null,"확인란","추가 작업 정보"]
[null,null,"고객 연락처 정보"]
[null,null,"고객 개인 정보"]
[null,null,"고객 기본 설정"]
[null,null,"연락처 일정 변경 여부"]
[null,null,"영업 성사 여부"]
[null,null,"항목 추가"]
[null,null,"항목 추가"]
[null,null,"항목 추가"]
[null,null,"항목 추가"]
[null,null,"항목 추가"]